[Event "8. Arber-Schachopen 2019"]
[Site "Bodenmais"]
[Date "2019.08.02"]
[Round "7.9"]
[White "Medunova, Vera"]
[Black "Schleining, Zoya"]
[Result "1/2-1/2"]
[ECO "B44"]
[WhiteElo "2093"]
[BlackElo "2339"]
[Annotator "ChessBase"]
[PlyCount "94"]
[EventDate "2019.07.27"]
[EventCountry "GER"]
[SourceTitle "playchess.com"]
[Source "ChessBase"]
[SourceQuality "1"]
[TimeControl "40/5400+30:1800+30"]

1. e4 {[%emt 0:00:00]} c5 {[%emt 0:00:00]} 2. Nf3 {[%emt 0:00:00]} Nc6 {[%emt 0:00:00]} 3. d4 {[%emt 0:00:05]} cxd4 {[%emt 0:00:00]} 4. Nxd4 {[%emt 0:00:04]} e6 {[%emt 0:00:00]} 5. a3 {[%emt 0:04:00]} Nf6 {[%emt 0:01:15]} 6. Nc3 {[%emt 0:00:45]} Be7 {[%emt 0:00:18]} 7. Be2 {[%emt 0:02:48]} O-O {[%emt 0:00:14]} 8. O-O {[%emt 0:01:29]} d6 {[%emt 0:01:13]} 9. Be3 {[%emt 0:02:24]} Qc7 {[%emt 0:01:56]} 10. Qd2 {[%emt 0:05:19]} Nxd4 {[%emt 0:04:16]} 11. Qxd4 {[%emt 0:04:27]} b6 {[%emt 0:08:33]} 12. Rad1 {[%emt 0:08:21]} Bb7 {[%emt 0:00:58]} 13. f3 {[%emt 0:02:06]} Rad8 {[%emt 0:04:56]} 14. Kh1 {[%emt 0:08:14]} Bc6 {[%emt 0:12:28]} 15. Bb5 {[%emt 0:06:28]} d5 {[%emt 0:08:49]} 16. Qa4 {[%emt 0:13:47]} Bxb5 {[%emt 0:09:28]} 17. Nxb5 {[%emt 0:00:50]} Qc6 {[%emt 0:00:55]} 18. exd5 {[%emt 0:03:48]} Nxd5 {[%emt 0:01:51]} 19. Bd4 {[%emt 0:01:13]} Rd7 {[%emt 0:16:35]} 20. c4 {[%emt 0:05:41]} Nf4 {[%emt 0:03:09]} 21. Be3 {[%emt 0:04:42]} Nd3 {[%emt 0:07:53]} 22. Qc2 {[%emt 0:03:53]} Ne5 {[%emt 0:03:19]} 23. Rxd7 {[%emt 0:01:58]} Qxd7 {[%emt 0:00:15]} 24. Rd1 {[%emt 0:00:37]} Qb7 {[%emt 0:00:41]} 25. Qe2 {[%emt 0:02:24]} Nc6 {[%emt 0:01:44]} 26. Nd6 {[%emt 0:02:22]} Qa6 {[%emt 0:03:21]} 27. Bf2 {[%emt 0:04:08]} Rd8 {[%emt 0:01:36]} 28. Nb5 {[%emt 0:01:44]} Qc8 {[%emt 0:00:50]} 29. Kg1 {[%emt 0:01:11]} h6 {[%emt 0:00:55]} 30. Kf1 {[%emt 0:01:19]} a6 {[%emt 0:03:12]} 31. Nc3 {[%emt 0:01:27]} Rxd1+ {[%emt 0:01:01]} 32. Nxd1 {[%emt 0:01:33]} Na5 {[%emt 0:00:40]} 33. Bxb6 {[%emt 0:01:17]} Nxc4 {[%emt 0:00:08]} 34. Bd4 {[%emt 0:00:41]} Nd6 {[%emt 0:01:04]} 35. g3 {[%emt 0:01:22]} Nb5 {[%emt 0:00:37]} 36. Be3 {[%emt 0:01:35]} Bf6 {[%emt 0:00:21]} 37. Qd3 {[%emt 0:01:29]} Qc6 {[%emt 0:00:29]} 38. Kf2 {[%emt 0:01:07]} Nd6 {[%emt 0:00:49]} 39. Kg2 {[%emt 0:01:01]} Nc4 {[%emt 0:00:55]} 40. b4 {[%emt 0:01:15]} Ne5 {[%emt 0:01:04]} 41. Qe2 {[%emt 0:09:41]} g5 {[%emt 0:03:15]} 42. h3 {[%emt 0:06:31]} Nc4 {[%emt 0:02:03]} 43. Qd3 {[%emt 0:01:56]} Ne5 {[%emt 0:06:56]} 44. Qe2 {[%emt 0:01:29]} Nc4 {[%emt 0:03:25]} 45. Qd3 {[%emt 0:00:25]} h5 {[%emt 0:05:12]} 46. Nf2 {[%emt 0:02:52]} Qd5 {[%emt 0:00:44]} 47. Bc1 {[%emt 0:02:04]} Be7 {[%emt 0:05:38]} 1/2-1/2

[Event "8. Arber-Schachopen 2019"]
[Site "Bodenmais"]
[Date "2019.08.02"]
[Round "7.10"]
[White "Pohl-Kuemmel, Jens-Uwe"]
[Black "Kottmair, Toni"]
[Result "0-1"]
[ECO "D96"]
[WhiteElo "2288"]
[BlackElo "2086"]
[Annotator "ChessBase"]
[PlyCount "104"]
[EventDate "2019.07.27"]
[EventCountry "GER"]
[SourceTitle "playchess.com"]
[Source "ChessBase"]
[SourceQuality "1"]
[TimeControl "40/5400+30:1800+30"]

1. d4 {[%emt 0:00:00]} Nf6 {[%emt 0:00:00]} 2. Nf3 {[%emt 0:00:00]} g6 {[%emt 0:00:34]} 3. c4 {[%emt 0:00:16]} Bg7 {[%emt 0:00:11]} 4. Nc3 {[%emt 0:00:15]} d5 {[%emt 0:00:26]} 5. Qb3 {[%emt 0:01:46]} dxc4 {[%emt 0:04:15]} 6. Qxc4 {[%emt 0:00:08]} O-O {[%emt 0:00:04]} 7. Bf4 {[%emt 0:00:23]} Be6 {[%emt 0:30:52]} 8. Qb5 {[%emt 0:14:17]} Nc6 {[%emt 0:11:55]} 9. e3 {[%emt 0:16:00]} Qd7 {[%emt 0:20:47]} 10. Bc4 {[%emt 0:20:26]} a6 {[%emt 0:10:30]} 11. Bxe6 {[%emt 0:00:26]} Qxe6 {[%emt 0:01:54]} 12. Qe2 {[%emt 0:12:00]} Ne4 {[%emt 0:10:03]} 13. O-O {[%emt 0:02:41]} Rac8 {[%emt 0:00:38]} 14. Rfc1 {[%emt 0:05:26]} Nxc3 {[%emt 0:02:14]} 15. bxc3 {[%emt 0:01:34]} b5 {[%emt 0:01:52]} 16. a4 {[%emt 0:06:07]} Na5 {[%emt 0:00:05]} 17. Nd2 {[%emt 0:00:41]} Qb6 {[%emt 0:00:31]} 18. axb5 {[%emt 0:04:48]} axb5 {[%emt 0:00:01]} 19. Rcb1 {[%emt 0:00:35]} c6 {[%emt 0:00:18]} 20. c4 {[%emt 0:01:01]} e5 {[%emt 0:00:27]} 21. dxe5 {[%emt 0:01:01]} b4 {[%emt 0:00:07]} 22. c5 {[%emt 0:04:07]} Qxc5 {[%emt 0:00:23]} 23. Ne4 {[%emt 0:01:07]} Qb6 {[%emt 0:00:25]} 24. Nd6 {[%emt 0:02:37]} Rb8 {[%emt 0:02:26]} 25. Qa2 {[%emt 0:00:36]} Nb7 {[%emt 0:00:17]} 26. Nc4 {[%emt 0:02:14]} Qb5 {[%emt 0:00:04]} 27. Qa7 {[%emt 0:00:25]} Qxc4 {[%emt 0:00:13]} 28. e6 {[%emt 0:00:07]} Bxa1 {[%emt 0:00:35]} 29. Bxb8 {[%emt 0:00:05]} Bc3 {[%emt 0:01:28]} 30. e7 {[%emt 0:00:28]} Re8 {[%emt 0:00:04]} 31. Qxb7 {[%emt 0:00:02]} Qe4 {[%emt 0:00:09]} 32. Rd1 {[%emt 0:00:13]} Rxe7 {[%emt 0:00:19]} 33. Qb6 {[%emt 0:00:38]} Kg7 {[%emt 0:00:40]} 34. h3 {[%emt 0:00:07]} Re6 {[%emt 0:01:14]} 35. Bf4 {[%emt 0:00:39]} h5 {[%emt 0:00:28]} 36. Qc5 {[%emt 0:01:42]} Qf5 {[%emt 0:00:19]} 37. Qc4 {[%emt 0:01:33]} Qe4 {[%emt 0:01:00]} 38. Qa6 {[%emt 0:00:28]} c5 {[%emt 0:00:11]} 39. Qc8 {[%emt 0:00:14]} Qc6 {[%emt 0:00:05]} 40. Qb8 {[%emt 0:00:21]} Re8 {[%emt 0:00:07]} 41. Qa7 {[%emt 0:30:46]} Ra8 {[%emt 0:30:53]} 42. Qe7 {[%emt 0:00:23]} Re8 {[%emt 0:00:20]} 43. Qa7 {[%emt 0:00:07]} Ra8 {[%emt 0:00:00]} 44. Qe7 {[%emt 0:00:00]} Bf6 {[%emt 0:00:00]} 45. Be5 {[%emt 0:00:00]} Bxe5 {[%emt 0:00:00]} 46. Qxe5+ {[%emt 0:00:00]} Qf6 {[%emt 0:00:00]} 47. Qxc5 {[%emt 0:00:00]} Ra1 {[%emt 0:00:00]} 48. Rxa1 {[%emt 0:00:00]} Qxa1+ {[%emt 0:00:00]} 49. Kh2 {[%emt 0:00:00]} b3 {[%emt 0:00:00]} 50. e4 {[%emt 0:00:00]} b2 {[%emt 0:00:00]} 51. Qe5+ {[%emt 0:00:00]} Kh7 {[%emt 0:00:00]} 52. Qd5 {[%emt 0:00:00]} b1=Q {[%emt 0:00:00]} 0-1

[Event "8. Arber-Schachopen 2019"]
[Site "Bodenmais"]
[Date "2019.08.02"]
[Round "7.12"]
[White "Beulertz, Stefan"]
[Black "Senner, Peter"]
[Result "0-1"]
[ECO "A10"]
[WhiteElo "2033"]
[BlackElo "2231"]
[Annotator "NA"]
[PlyCount "38"]
[EventDate "2019.07.27"]
[EventCountry "GER"]
[SourceTitle "playchess.com"]
[Source "ChessBase"]
[SourceQuality "1"]
[TimeControl "40/5400+30:1800+30"]

1. c4 {[%emt 0:00:00]} f5 {[%emt 0:00:00]} 2. Nc3 {[%emt 0:00:12]} Nf6 {[%emt 0:00:00]} 3. g3 {[%emt 0:00:25]} e6 {[%emt 0:00:09]} 4. Bg2 {[%emt 0:01:04]} Be7 {[%emt 0:00:22]} 5. d3 {[%emt 0:00:45]} O-O {[%emt 0:00:58]} 6. e4 {[%emt 0:02:35]} fxe4 {[%emt 0:00:10]} 7. dxe4 {[%emt 0:00:17]} d6 {[%emt 0:05:21]} 8. e5 {[%emt 0:09:55]} dxe5 {[%emt 0:00:08]} 9. Qe2 {[%emt 0:00:07]} Nc6 {[%emt 0:01:10]} 10. Bxc6 {[%emt 0:02:18]} bxc6 {[%emt 0:00:14]} 11. Nf3 {[%emt 0:00:57]} e4 {[%emt 0:31:35]} 12. Nxe4 {[%emt 0:03:05]} e5 {[%emt 0:00:10]} 13. Nfg5 {[%emt 0:21:33]} Nxe4 {[%emt 0:09:46]} 14. Nxe4 {[%emt 0:00:08]} Bh3 {[%emt 0:00:18]} 15. Rg1 {[%emt 0:01:54]} Bf5 {[%emt 0:07:13]} 16. f3 {[%emt 0:04:31]} Qd4 {[%emt 0:03:07]} 17. Be3 {[%emt 0:05:29]} Bb4+ {[%emt 0:00:13]} 18. Kf2 {[%emt 0:00:23]} Qxe4 {[%emt 0:01:15]} 19. a3 {[%emt 0:06:17]} Bg4 {[%emt 0:00:39]} 0-1

[Event "8. Arber-Schachopen 2019"]
[Site "Bodenmais"]
[Date "2019.08.02"]
[Round "7.13"]
[White "Brandsma, Romayn"]
[Black "Hoffmann, Sebastian"]
[Result "1/2-1/2"]
[ECO "B20"]
[WhiteElo "1957"]
[BlackElo "2199"]
[Annotator "ChessBase"]
[PlyCount "107"]
[EventDate "2019.07.27"]
[EventCountry "GER"]
[SourceTitle "playchess.com"]
[Source "ChessBase"]
[SourceQuality "1"]
[TimeControl "40/5400+30:1800+30"]

1. e4 {[%emt 0:00:00]} c5 {[%emt 0:01:13]} 2. c4 {[%emt 0:00:57]} Nc6 {[%emt 0:04:46]} 3. Nc3 {[%emt 0:01:10]} d6 {[%emt 0:01:54]} 4. g3 {[%emt 0:00:38]} g6 {[%emt 0:03:49]} 5. Bg2 {[%emt 0:00:18]} Bg7 {[%emt 0:00:06]} 6. Nge2 {[%emt 0:00:32]} Bg4 {[%emt 0:01:53]} 7. h3 {[%emt 0:07:30]} Bxe2 {[%emt 0:02:28]} 8. Nxe2 {[%emt 0:00:52]} e6 {[%emt 0:02:16]} 9. d3 {[%emt 0:02:15]} Qd7 {[%emt 0:03:57]} 10. Rb1 {[%emt 0:04:11]} Nge7 {[%emt 0:02:48]} 11. Nf4 {[%emt 0:02:35]} a6 {[%emt 0:02:36]} 12. h4 {[%emt 0:02:59]} h6 {[%emt 0:09:43]} 13. a3 {[%emt 0:03:07]} b5 {[%emt 0:08:55]} 14. b3 {[%emt 0:00:41]} e5 {[%emt 0:05:36]} 15. Ne2 {[%emt 0:00:26]} Rb8 {[%emt 0:05:26]} 16. Qc2 {[%emt 0:01:25]} Qb7 {[%emt 0:06:01]} 17. Rb2 {[%emt 0:01:42]} O-O {[%emt 0:01:45]} 18. h5 {[%emt 0:02:34]} g5 {[%emt 0:00:26]} 19. g4 {[%emt 0:00:29]} Qd7 {[%emt 0:04:46]} 20. f3 {[%emt 0:00:50]} Rb7 {[%emt 0:01:31]} 21. O-O {[%emt 0:06:03]} Rfb8 {[%emt 0:00:47]} 22. Bd2 {[%emt 0:00:48]} bxc4 {[%emt 0:02:17]} 23. dxc4 {[%emt 0:00:01]} Nd8 {[%emt 0:07:39]} 24. Rfb1 {[%emt 0:02:26]} Nec6 {[%emt 0:00:47]} 25. Bc3 {[%emt 0:02:17]} Ne6 {[%emt 0:00:36]} 26. Bf1 {[%emt 0:00:33]} Ned4 {[%emt 0:03:09]} 27. Nxd4 {[%emt 0:02:24]} exd4 {[%emt 0:00:44]} 28. Bd2 {[%emt 0:00:54]} Ne5 {[%emt 0:02:21]} 29. Kf2 {[%emt 0:00:59]} Qe6 {[%emt 0:06:19]} 30. Qd1 {[%emt 0:01:17]} Re8 {[%emt 0:00:40]} 31. Kg2 {[%emt 0:01:11]} Reb8 {[%emt 0:02:58]} 32. Be1 {[%emt 0:02:10]} d3 {[%emt 0:01:00]} 33. Bxd3 {[%emt 0:00:13]} Nxd3 {[%emt 0:01:43]} 34. Qxd3 {[%emt 0:00:04]} Bxb2 {[%emt 0:01:01]} 35. Rxb2 {[%emt 0:00:02]} Rb6 {[%emt 0:01:57]} 36. Ba5 {[%emt 0:02:35]} R6b7 {[%emt 0:00:17]} 37. Bd2 {[%emt 0:01:07]} Qe7 {[%emt 0:01:09]} 38. b4 {[%emt 0:00:22]} cxb4 {[%emt 0:00:31]} 39. axb4 {[%emt 0:00:02]} Qe6 {[%emt 0:00:55]} 40. Bc3 {[%emt 0:02:25]} f6 {[%emt 0:00:39]} 41. Qd4 {[%emt 0:30:37]} Rc8 {[%emt 0:02:44]} 42. c5 {[%emt 0:00:00]} dxc5 {[%emt 0:07:30]} 43. bxc5 {[%emt 0:00:00]} Rbc7 {[%emt 0:02:22]} 44. Rb6 {[%emt 0:00:00]} Rc6 {[%emt 0:01:12]} 45. Rxc6 {[%emt 0:00:00]} Qxc6 {[%emt 0:00:24]} 46. Bb4 {[%emt 0:00:00]} Kg7 {[%emt 0:01:54]} 47. Qd5 {[%emt 0:00:00]} Qb5 {[%emt 0:03:59]} 48. Qf5 {[%emt 0:00:00]} Rc6 {[%emt 0:06:11]} 49. Qg6+ {[%emt 0:00:00]} Kf8 {[%emt 0:00:01]} 50. Qxh6+ {[%emt 0:00:00]} Ke7 {[%emt 0:00:01]} 51. Qg7+ {[%emt 0:00:00]} Ke8 {[%emt 0:01:28]} 52. Qg8+ {[%emt 0:00:00]} Ke7 {[%emt 0:00:15]} 53. Qg7+ {[%emt 0:00:00]} Ke8 {[%emt 0:00:41]} 54. Qg8+ {[%emt 0:00:00]} 1/2-1/2

[Event "8. Arber-Schachopen 2019"]
[Site "Bodenmais"]
[Date "2019.08.02"]
[Round "7.14"]
[White "Eggeling, Philipp"]
[Black "Beck, Gerald"]
[Result "1/2-1/2"]
[ECO "A05"]
[WhiteElo "1869"]
[BlackElo "2176"]
[Annotator "NA"]
[PlyCount "84"]
[EventDate "2019.07.27"]
[EventCountry "GER"]
[SourceTitle "playchess.com"]
[Source "ChessBase"]
[SourceQuality "1"]
[TimeControl "40/5400+30:1800+30"]

1. Nf3 {[%emt 0:00:00]} Nf6 {[%emt 0:00:10]} 2. g3 {[%emt 0:00:00]} b6 {[%emt 0:03:04]} 3. Bg2 {[%emt 0:00:06]} Bb7 {[%emt 0:00:11]} 4. c4 {[%emt 0:00:31]} e6 {[%emt 0:00:15]} 5. O-O {[%emt 0:00:23]} c5 {[%emt 0:05:39]} 6. b3 {[%emt 0:02:31]} g6 {[%emt 0:08:23]} 7. Bb2 {[%emt 0:00:04]} Bg7 {[%emt 0:00:20]} 8. d4 {[%emt 0:01:20]} O-O {[%emt 0:09:39]} 9. dxc5 {[%emt 0:00:39]} bxc5 {[%emt 0:00:34]} 10. Nc3 {[%emt 0:03:57]} d5 {[%emt 0:25:55]} 11. cxd5 {[%emt 0:00:47]} exd5 {[%emt 0:01:52]} 12. Na4 {[%emt 0:01:36] A30: Symmetrical English: Double Fianchetto and Hedgehog} Na6 {[%emt 0:04:45]} 13. Rc1 {[%emt 0:00:48] [#]} Qa5 $146 {[%emt 0:09:48]} ({Predecessor:} 13... Rc8 14. Bh3 Rc7 15. Ba3 Ne4 16. Nd2 Ng5 17. Bg2 Ne6 18. Nb1 {½-½ (18) Jakubiec,A (2565)-Babula,V (2569) Czechia 2004}) 14. Bc3 {[%emt 0:02:55]} Qb5 {[%emt 0:02:32]} 15. e3 {[%emt 0:00:31]} Rfd8 {[%emt 0:04:48]} 16. Qc2 {[%emt 0:02:30]} Rac8 {[%emt 0:03:08]} 17. Qb2 {[%emt 0:01:29]} Ne8 {[%emt 0:04:27]} 18. Rfd1 {[%emt 0:02:43]} d4 {[%emt 0:02:16]} 19. exd4 {[%emt 0:02:04]} Bxf3 {[%emt 0:00:08]} 20. Bxf3 {[%emt 0:00:27]} cxd4 {[%emt 0:00:02]} 21. Bd2 {[%emt 0:03:28]} Nb4 {[%emt 0:02:49]} 22. Bxb4 {[%emt 0:04:20]} Qxb4 {[%emt 0:00:28]} 23. Rxc8 {[%emt 0:01:25]} Rxc8 {[%emt 0:00:07]} 24. Qb1 {[%emt 0:00:59]} Qa3 {[%emt 0:02:16]} 25. Nb2 {[%emt 0:02:22]} Nd6 {[%emt 0:00:13]} 26. Bd5 {[%emt 0:01:20]} Nb5 {[%emt 0:01:19]} 27. Rd2 {[%emt 0:02:55]} Nc3 {[%emt 0:00:20]} 28. Qc2 {[%emt 0:02:09]} Qxa2 {[%emt 0:00:50]} 29. Bc4 {[%emt 0:01:33]} Re8 {[%emt 0:01:09]} 30. Nd3 {[%emt 0:01:34]} Qa1+ {[%emt 0:01:10]} 31. Kg2 {[%emt 0:00:20]} Qa5 {[%emt 0:01:45]} 32. Nf4 {[%emt 0:04:55]} Qe5 {[%emt 0:01:00]} 33. Qd3 {[%emt 0:02:27]} Bh6 {[%emt 0:00:29]} 34. Qxd4 $11 {[%emt 0:00:11]} Bxf4 {[%emt 0:01:36]} 35. gxf4 {[%emt 0:01:22]} Qxd4 {[%emt 0:01:06]} 36. Rxd4 {[%emt 0:00:06]} Re7 {[%emt 0:00:17]} 37. Kf3 {[%emt 0:01:10]} Kg7 {[%emt 0:00:31]} 38. Bd3 {[%emt 0:01:58]} f5 {[%emt 0:00:39]} 39. Bc4 {[%emt 0:02:42]} Ne4 {[%emt 0:00:30]} 40. Rd8 {[%emt 0:00:38]} Nf6 {[%emt 0:00:30]} 41. Rd1 {[%emt 0:32:39]} Rc7 {[%emt 0:32:31]} 42. Rd8 {[%emt 0:03:43]} Re7 {[%emt 0:00:00]} 1/2-1/2

[Event "8. Arber-Schachopen 2019"]
[Site "Bodenmais"]
[Date "2019.08.02"]
[Round "7.15"]
[White "Schelle, Artur"]
[Black "Vennemann, Juergen"]
[Result "1-0"]
[ECO "A00"]
[WhiteElo "2176"]
[BlackElo "1925"]
[Annotator "ChessBase"]
[PlyCount "111"]
[EventDate "2019.07.27"]
[EventCountry "GER"]
[SourceTitle "playchess.com"]
[Source "ChessBase"]
[SourceQuality "1"]
[TimeControl "40/5400+30:1800+30"]

1. g3 {[%emt 0:00:00]} d5 {[%emt 0:00:16]} 2. Bg2 {[%emt 0:00:00]} c6 {[%emt 0:00:29]} 3. d3 {[%emt 0:01:13]} e5 {[%emt 0:01:00]} 4. Nf3 {[%emt 0:00:41]} Bd6 {[%emt 0:00:16]} 5. O-O {[%emt 0:00:17]} Nf6 {[%emt 0:00:24]} 6. Nc3 {[%emt 0:00:30]} O-O {[%emt 0:00:46]} 7. e4 {[%emt 0:02:48]} Nbd7 {[%emt 0:06:30]} 8. Nh4 {[%emt 0:10:52]} d4 {[%emt 0:09:03]} 9. Nf5 {[%emt 0:04:48]} Bc7 {[%emt 0:00:57]} 10. Nb1 {[%emt 0:06:24]} Nb6 {[%emt 0:06:26]} 11. Nd2 {[%emt 0:07:57]} Be6 {[%emt 0:02:59]} 12. Nf3 {[%emt 0:01:57]} Qd7 {[%emt 0:04:16]} 13. N3h4 {[%emt 0:02:20]} Kh8 {[%emt 0:06:09]} 14. Kh1 {[%emt 0:09:16]} Ng8 {[%emt 0:02:42]} 15. b3 {[%emt 0:09:29]} Nc8 {[%emt 0:04:18]} 16. Bd2 {[%emt 0:02:02]} Nd6 {[%emt 0:02:39]} 17. Nxd6 {[%emt 0:03:44]} Bxd6 {[%emt 0:00:13]} 18. f4 {[%emt 0:00:18]} exf4 {[%emt 0:13:36]} 19. gxf4 {[%emt 0:04:06]} Bh3 {[%emt 0:05:40]} 20. Qf3 {[%emt 0:02:40]} Bg4 {[%emt 0:02:33]} 21. Qf2 {[%emt 0:06:39]} Bc7 {[%emt 0:04:14]} 22. Rae1 {[%emt 0:03:23]} Rae8 {[%emt 0:02:44]} 23. Nf3 {[%emt 0:01:47]} c5 {[%emt 0:04:11]} 24. Rg1 {[%emt 0:01:52]} Re6 {[%emt 0:01:08]} 25. f5 {[%emt 0:03:00]} Ra6 {[%emt 0:01:42]} 26. a4 {[%emt 0:02:22]} Nh6 {[%emt 0:02:59]} 27. h3 {[%emt 0:06:20]} Bxf3 {[%emt 0:01:39]} 28. Bxf3 {[%emt 0:00:12]} Nxf5 {[%emt 0:05:49]} 29. Bg4 {[%emt 0:02:10]} Ng3+ {[%emt 0:02:37]} 30. Rxg3 {[%emt 0:00:09]} Bxg3 {[%emt 0:00:18]} 31. Qxg3 {[%emt 0:00:04]} Rg6 {[%emt 0:00:45]} 32. Bxd7 {[%emt 0:00:59]} Rxg3 {[%emt 0:00:07]} 33. Bg4 {[%emt 0:00:45]} h5 {[%emt 0:00:53]} 34. Kh2 {[%emt 0:00:25]} Rxg4 {[%emt 0:03:25]} 35. hxg4 {[%emt 0:00:07]} hxg4 {[%emt 0:00:10]} 36. Kg3 {[%emt 0:00:37]} f5 {[%emt 0:00:05]} 37. exf5 {[%emt 0:01:09]} Rxf5 {[%emt 0:00:14]} 38. Re2 {[%emt 0:00:07]} Rf1 {[%emt 0:01:23]} 39. Kxg4 {[%emt 0:00:11]} Kg8 {[%emt 0:00:22]} 40. Bf4 {[%emt 0:00:25]} Kf7 {[%emt 0:00:29]} 41. Kf5 {[%emt 0:30:22]} b6 {[%emt 0:32:55]} 42. Ke4 {[%emt 0:00:27]} Ke6 {[%emt 0:00:38]} 43. Rg2 {[%emt 0:00:29]} Re1+ {[%emt 0:00:12]} 44. Kf3 {[%emt 0:00:06]} Rf1+ {[%emt 0:00:00]} 45. Rf2 {[%emt 0:00:00]} Rg1 {[%emt 0:00:00]} 46. Bb8 {[%emt 0:00:00]} a6 {[%emt 0:00:00]} 47. Ba7 {[%emt 0:00:00]} b5 {[%emt 0:00:00]} 48. axb5 {[%emt 0:00:00]} axb5 {[%emt 0:00:00]} 49. Bxc5 {[%emt 0:00:00]} Kd5 {[%emt 0:00:00]} 50. Bb4 {[%emt 0:00:00]} Rg6 {[%emt 0:00:00]} 51. Bf8 {[%emt 0:00:00]} Rf6+ {[%emt 0:00:00]} 52. Ke2 {[%emt 0:00:00]} Rc6 {[%emt 0:00:00]} 53. Kd2 {[%emt 0:00:00]} g6 {[%emt 0:00:00]} 54. b4 {[%emt 0:00:00]} Re6 {[%emt 0:00:00]} 55. Rf4 {[%emt 0:00:00]} Ke5 {[%emt 0:00:00]} 56. Re4+ 1-0

[Event "8. Arber-Schachopen 2019"]
[Site "Bodenmais"]
[Date "2019.08.02"]
[Round "7.16"]
[White "Peglau, Charis"]
[Black "Schmahl, Stephan"]
[Result "1-0"]
[ECO "C01"]
[WhiteElo "1540"]
[BlackElo "2101"]
[Annotator "NA"]
[PlyCount "47"]
[EventDate "2019.07.27"]
[EventCountry "GER"]
[SourceTitle "playchess.com"]
[Source "ChessBase"]
[SourceQuality "1"]
[TimeControl "40/5400+30:1800+30"]

1. e4 {[%emt 0:00:00]} e6 {[%emt 0:00:00]} 2. d4 {[%emt 0:00:00]} d5 {[%emt 0:00:00]} 3. exd5 {[%emt 0:00:00]} exd5 {[%emt 0:00:00]} 4. Bd3 {[%emt 0:00:13]} Nc6 {[%emt 0:00:00]} 5. c3 {[%emt 0:00:10]} Bd6 {[%emt 0:00:00]} 6. Nf3 {[%emt 0:00:32]} Bg4 {[%emt 0:03:17]} 7. O-O {[%emt 0:01:01]} Nge7 {[%emt 0:02:09]} 8. Re1 {[%emt 0:02:03]} Qd7 {[%emt 0:01:02]} 9. a4 {[%emt 0:03:28]} O-O-O {[%emt 0:06:08]} 10. b4 {[%emt 0:00:39]} Ng6 {[%emt 0:03:00]} 11. a5 {[%emt 0:03:55]} Rde8 {[%emt 0:03:40]} 12. Rxe8+ {[%emt 0:01:40]} Rxe8 {[%emt 0:00:05]} 13. Nbd2 {[%emt 0:02:02]} Nh4 {[%emt 0:12:30]} 14. b5 {[%emt 0:03:04]} Bxf3 {[%emt 0:08:42]} 15. Nxf3 {[%emt 0:00:49]} Nxf3+ {[%emt 0:01:35]} 16. Qxf3 {[%emt 0:03:55]} Re1+ {[%emt 0:00:32]} 17. Bf1 {[%emt 0:00:07]} Nxd4 {[%emt 0:01:08]} 18. cxd4 {[%emt 0:05:53]} Qxb5 {[%emt 0:04:54]} 19. Qh3+ {[%emt 0:00:11]} Kb8 {[%emt 0:00:03]} 20. g3 {[%emt 0:00:10]} Ba3 {[%emt 0:38:21]} 21. Rxa3 {[%emt 0:03:32]} Rxc1 {[%emt 0:00:03]} 22. Rc3 {[%emt 0:03:06]} Qb1 {[%emt 0:03:46]} 23. Rxc1 {[%emt 0:01:42]} Qxc1 {[%emt 0:00:04]} 24. Qxh7 {[%emt 0:00:25]} 1-0

[Event "8. Arber-Schachopen 2019"]
[Site "Bodenmais"]
[Date "2019.08.02"]
[Round "7.17"]
[White "Bielmeier, Ludwig"]
[Black "Heiduk, Christoph"]
[Result "1-0"]
[ECO "A14"]
[WhiteElo "2083"]
[BlackElo "1870"]
[Annotator "NA"]
[PlyCount "115"]
[EventDate "2019.07.27"]
[EventCountry "GER"]
[SourceTitle "playchess.com"]
[Source "ChessBase"]
[SourceQuality "1"]
[TimeControl "40/5400+30:1800+30"]

1. Nf3 {[%emt 0:03:06]} d5 {[%emt 0:00:00]} 2. c4 {[%emt 0:00:23]} e6 {[%emt 0:00:09]} 3. g3 {[%emt 0:00:30]} Nf6 {[%emt 0:00:18]} 4. Bg2 {[%emt 0:00:11]} Be7 {[%emt 0:00:19]} 5. O-O {[%emt 0:00:22]} O-O {[%emt 0:00:05]} 6. Qc2 {[%emt 0:01:12]} c5 {[%emt 0:03:43]} 7. d4 {[%emt 0:04:00]} b6 {[%emt 0:08:30]} 8. Nc3 {[%emt 0:07:17] A14: English Opening: 1...e6 with b3 by White} (8. Rd1 Bb7 9. cxd5 exd5 10. Nc3 Na6 11. Bg5 Nc7 12. Rac1 c4 13. Ne5 b5 14. Qf5 Qc8 15. Qf3 a6 16. b3 Ra7 17. bxc4 dxc4 18. Nc6 Bxc6 19. Qxc6 {½-½ (38) Gabuzyan,H (2571)-Shimanov,A (2641) chess.com INT 2018}) 8... Bb7 {[%emt 0:11:18]} 9. cxd5 {[%emt 0:03:17]} cxd4 $146 {[%emt 0:03:28]} ({Predecessor:} 9... exd5 10. Bf4 Bd6 11. Bxd6 Qxd6 12. Nb5 Qe7 13. dxc5 bxc5 14. Rac1 a6 15. Nc3 Nbd7 16. e3 Rac8 17. Rfd1 Ne5 {1-0 (47) Yilmaz,N (1559)-Yalcinkaya,I (1535) Konya 2018}) 10. Nxd4 {[%emt 0:13:10]} Nxd5 {[%emt 0:02:26]} 11. Nxd5 {[%emt 0:05:25]} Bxd5 {[%emt 0:01:49]} 12. e4 {[%emt 0:02:06]} Bb7 {[%emt 0:00:45]} 13. Rd1 {[%emt 0:01:16]} Qc8 {[%emt 0:03:47]} 14. Qe2 {[%emt 0:02:42]} Nc6 {[%emt 0:02:03]} 15. Nb5 {[%emt 0:05:01]} Rd8 {[%emt 0:13:01]} 16. Be3 {[%emt 0:02:15]} e5 {[%emt 0:08:41]} 17. Rxd8+ {[%emt 0:03:56]} Qxd8 {[%emt 0:00:35]} 18. Rd1 {[%emt 0:00:25]} Qf8 {[%emt 0:01:01]} 19. Nc7 {[%emt 0:02:34]} Rd8 {[%emt 0:02:26]} 20. Nd5 {[%emt 0:00:20]} Bc5 {[%emt 0:00:32]} 21. h4 {[%emt 0:23:53]} Qd6 $11 {[%emt 0:12:00]} 22. Bg5 {[%emt 0:02:25]} Nd4 {[%emt 0:02:00]} 23. Qh5 {[%emt 0:03:52]} Re8 {[%emt 0:04:19]} 24. Rd2 {[%emt 0:02:18]} Qg6 {[%emt 0:02:59]} 25. Qd1 {[%emt 0:00:29]} a5 {[%emt 0:02:44]} 26. a3 {[%emt 0:00:44]} Qd6 {[%emt 0:00:45]} 27. Kh2 {[%emt 0:01:24]} b5 {[%emt 0:02:29]} 28. Ne3 {[%emt 0:02:47]} Qb6 {[%emt 0:00:57]} 29. Nd5 {[%emt 0:00:39]} Qd6 {[%emt 0:00:01]} 30. Be3 {[%emt 0:00:37]} Kh8 {[%emt 0:04:32]} 31. f4 {[%emt 0:00:40]} f6 {[%emt 0:00:27]} 32. fxe5 {[%emt 0:00:47]} fxe5 {[%emt 0:00:05]} 33. Qh5 {[%emt 0:00:30]} Qg6 {[%emt 0:01:35]} 34. Qxg6 {[%emt 0:01:05]} hxg6 {[%emt 0:00:01]} 35. Nc7 {[%emt 0:00:19]} Rb8 {[%emt 0:01:38]} 36. Nxb5 {[%emt 0:01:16]} Rf8 {[%emt 0:01:52]} 37. Nxd4 {[%emt 0:01:30]} exd4 38. Bxd4 {[%emt 0:00:13]} Bxd4 {[%emt 0:01:10]} 39. Rxd4 {[%emt 0:00:11]} Rf2 {[%emt 0:00:14]} 40. b4 {[%emt 0:02:32]} axb4 {[%emt 0:00:22]} 41. axb4 {[%emt 0:31:24]} Rb2 {[%emt 0:30:20]} 42. Kg1 {[%emt 0:00:00]} Kh7 {[%emt 0:00:00]} 43. Bf1 {[%emt 0:00:00]} Rb1 {[%emt 0:00:00]} 44. Kf2 {[%emt 0:00:00]} Rb2+ {[%emt 0:00:00]} 45. Ke3 {[%emt 0:00:00]} Rb3+ {[%emt 0:00:00]} 46. Bd3 {[%emt 0:00:00]} Ba6 {[%emt 0:00:00]} 47. e5 {[%emt 0:00:00]} Bxd3 {[%emt 0:00:00]} 48. Rxd3 {[%emt 0:00:00]} Rxb4 {[%emt 0:00:00]} 49. Rd4 {[%emt 0:00:00]} Rb3+ {[%emt 0:00:00]} 50. Kf4 {[%emt 0:00:00]} Kg8 {[%emt 0:00:00]} 51. g4 {[%emt 0:00:00]} Rb5 {[%emt 0:00:00]} 52. Re4 {[%emt 0:00:00]} Kf7 {[%emt 0:00:00]} 53. Ra4 {[%emt 0:00:00]} Rb7 {[%emt 0:00:00]} 54. Kg5 {[%emt 0:00:00]} Rb5 {[%emt 0:00:00]} 55. Ra7+ {[%emt 0:00:00]} Kf8 {[%emt 0:00:00]} 56. Kxg6 {[%emt 0:00:00]} Rxe5 {[%emt 0:00:00]} 57. Ra8+ {[%emt 0:00:00]} Ke7 {[%emt 0:00:00]} 58. g5 {[%emt 0:00:00]} 1-0